[Event "Titled Tuesday Blitz July 13 2021"]
[White "Krivonosov, Oleg"]
[Black "Kubatko, Ivan"]
[WhiteFideId "11600349"]
[BlackFideId "24111473"]
[WhiteElo "2469"]
[BlackElo "2285"]
[Result "1/2-1/2"]
[Round "06"]
[TimeControl "180+1"]
[Date "2021.07.13"]
[WhiteClock "0:00:24"]
[BlackClock "0:00:05"]

1. Nf3 {[%clk 0:03:00]}  d5 {[%clk 0:02:59]} 2. d4 {[%clk 0:03:00]}  c5 {[%clk 0:02:59]} 3. c4 {[%clk 0:02:59]}  e6 {[%clk 0:02:59]} 4. cxd5 {[%clk 0:02:58]}  exd5 {[%clk 0:03:00]} 5. g3 {[%clk 0:02:58]}  Nc6 {[%clk 0:03:01]} 6. Bg2 {[%clk 0:02:58]}  Nf6 {[%clk 0:03:01]} 7. O-O {[%clk 0:02:57]}  Be7 {[%clk 0:03:02]} 8. Nc3 {[%clk 0:02:57]}  O-O {[%clk 0:03:01]} 9. Bg5 {[%clk 0:02:56]}  c4 {[%clk 0:03:00]} 10. Ne5 {[%clk 0:02:55]}  Be6 {[%clk 0:02:59]} 11. Nxc6 {[%clk 0:02:54]}  bxc6 {[%clk 0:02:59]} 12. b3 {[%clk 0:02:54]}  Qa5 {[%clk 0:02:48]} 13. Qc2 {[%clk 0:02:53]}  Rfd8 {[%clk 0:02:44]} 14. Rfd1 {[%clk 0:02:39]}  Rac8 {[%clk 0:02:43]} 15. bxc4 {[%clk 0:02:38]}  dxc4 {[%clk 0:02:42]} 16. Ne4 {[%clk 0:02:38]}  Bf5 {[%clk 0:01:52]} 17. Bxf6 {[%clk 0:02:27]}  Bxe4 {[%clk 0:01:24]} 18. Bxe4 {[%clk 0:02:20]}  Bxf6 {[%clk 0:01:24]} 19. Bxh7+ {[%clk 0:02:12]}  Kh8 {[%clk 0:00:56]} 20. Bf5 {[%clk 0:02:10]}  Rb8 {[%clk 0:00:51]} 21. e3 {[%clk 0:01:47]}  c5 {[%clk 0:00:40]} 22. Be4 {[%clk 0:01:18]}  cxd4 {[%clk 0:00:36]} 23. exd4 {[%clk 0:01:18]}  Bxd4 {[%clk 0:00:29]} 24. Rab1 {[%clk 0:01:17]}  Rxb1 {[%clk 0:00:28]} 25. Rxb1 {[%clk 0:01:14]}  Qc5 {[%clk 0:00:19]} 26. Kg2 {[%clk 0:01:11]}  f5 {[%clk 0:00:10]} 27. Bf3 {[%clk 0:01:09]}  c3 {[%clk 0:00:08]} 28. a4 {[%clk 0:01:07]}  Bxf2 {[%clk 0:00:08]} 29. Rb5 {[%clk 0:00:53]}  Rd2 {[%clk 0:00:08]} 30. Qxd2 {[%clk 0:00:38]}  cxd2 {[%clk 0:00:05]} 31. Rxc5 {[%clk 0:00:37]}  Bxc5 {[%clk 0:00:06]} 32. Bd1 {[%clk 0:00:37]}  g6 {[%clk 0:00:06]} 33. Kf3 {[%clk 0:00:37]}  Kg7 {[%clk 0:00:06]} 34. Bc2 {[%clk 0:00:35]}  Kf6 {[%clk 0:00:06]} 35. g4 {[%clk 0:00:35]}  fxg4+ {[%clk 0:00:06]} 36. Kxg4 {[%clk 0:00:34]}  g5 {[%clk 0:00:06]} 37. h3 {[%clk 0:00:34]}  Be3 {[%clk 0:00:06]} 38. Kf3 {[%clk 0:00:33]}  Bf4 {[%clk 0:00:06]} 39. h4 {[%clk 0:00:30]}  Bd6 {[%clk 0:00:05]} 40. h5 {[%clk 0:00:28]}  Bb4 {[%clk 0:00:04]} 41. Kg4 {[%clk 0:00:28]}  Bd6 {[%clk 0:00:03]} 42. h6 {[%clk 0:00:27]}  Bf4 {[%clk 0:00:03]} 43. h7 {[%clk 0:00:27]}  Kg7 {[%clk 0:00:03]} 44. Kh5 {[%clk 0:00:27]}  a5 {[%clk 0:00:03]} 45. Kg4 {[%clk 0:00:26]}  d1=Q+ {[%clk 0:00:03]} 46. Bxd1 {[%clk 0:00:25]}  Kxh7 {[%clk 0:00:04]} 47. Be2 {[%clk 0:00:25]}  Kg7 {[%clk 0:00:05]} 48. Bb5 {[%clk 0:00:25]}  Kf6 {[%clk 0:00:06]} 49. Be8 {[%clk 0:00:24]}  Ke5 {[%clk 0:00:07]} 50. Bb5 {[%clk 0:00:24]}  Kd4 {[%clk 0:00:07]} 51. Be8 {[%clk 0:00:24]}  Kc3 {[%clk 0:00:08]} 52. Bb5 {[%clk 0:00:24]}  Kb4 {[%clk 0:00:09]} 53. Be8 {[%clk 0:00:24]}  Kc3 {[%clk 0:00:05]} 1/2-1/2


[Site "https://www.chess.com"]

[Event "Titled Tuesday Blitz July 13 2021"]
[White "Manukian, Artak"]
[Black "Dushyant Sharma"]
[WhiteFideId "13301373"]
[BlackFideId "25065130"]
[WhiteElo "2374"]
[BlackElo "2019"]
[Result "0-1"]
[Round "06"]
[TimeControl "180+1"]
[Date "2021.07.13"]
[WhiteClock "0:00:16"]
[BlackClock "0:00:24"]

1. e4 {[%clk 0:01:39]}  d5 {[%clk 0:02:55]} 2. exd5 {[%clk 0:01:39]}  Nf6 {[%clk 0:02:55]} 3. Nc3 {[%clk 0:01:40]}  Bg4 {[%clk 0:02:55]} 4. f3 {[%clk 0:01:39]}  Bf5 {[%clk 0:02:55]} 5. Bb5+ {[%clk 0:01:37]}  c6 {[%clk 0:02:55]} 6. dxc6 {[%clk 0:01:37]}  Nxc6 {[%clk 0:02:56]} 7. Nge2 {[%clk 0:01:36]}  e5 {[%clk 0:02:56]} 8. d3 {[%clk 0:01:33]}  Bc5 {[%clk 0:02:55]} 9. Ng3 {[%clk 0:01:33]}  Bg6 {[%clk 0:02:53]} 10. Qe2 {[%clk 0:01:28]}  O-O {[%clk 0:02:51]} 11. Bxc6 {[%clk 0:01:27]}  bxc6 {[%clk 0:02:51]} 12. Be3 {[%clk 0:01:27]}  Qb6 {[%clk 0:02:41]} 13. Bxc5 {[%clk 0:01:10]}  Qxc5 {[%clk 0:02:42]} 14. Qf2 {[%clk 0:01:03]}  Qb4 {[%clk 0:02:39]} 15. Rb1 {[%clk 0:00:59]}  Nd5 {[%clk 0:02:17]} 16. Qd2 {[%clk 0:00:56]}  Qd4 {[%clk 0:02:04]} 17. Nxd5 {[%clk 0:00:46]}  cxd5 {[%clk 0:02:05]} 18. Qf2 {[%clk 0:00:39]}  Qb4+ {[%clk 0:01:58]} 19. Kf1 {[%clk 0:00:36]}  Rac8 {[%clk 0:01:53]} 20. h4 {[%clk 0:00:33]}  h5 {[%clk 0:01:52]} 21. b3 {[%clk 0:00:15]}  Rc7 {[%clk 0:01:48]} 22. Qe1 {[%clk 0:00:10]}  Qf4 {[%clk 0:01:47]} 23. Ne2 {[%clk 0:00:10]}  Qf6 {[%clk 0:01:46]} 24. Rc1 {[%clk 0:00:08]}  Rfc8 {[%clk 0:01:46]} 25. Qd2 {[%clk 0:00:07]}  e4 {[%clk 0:01:39]} 26. Kf2 {[%clk 0:00:03]}  exd3 {[%clk 0:01:21]} 27. cxd3 {[%clk 0:00:03]}  Rxc1 {[%clk 0:01:21]} 28. Nxc1 {[%clk 0:00:03]}  Qd4+ {[%clk 0:01:20]} 29. Qe3 {[%clk 0:00:03]}  Rc2+ {[%clk 0:01:20]} 30. Ne2 {[%clk 0:00:02]}  Qxd3 {[%clk 0:01:16]} 31. Qxd3 {[%clk 0:00:02]}  Bxd3 {[%clk 0:01:17]} 32. Re1 {[%clk 0:00:02]}  Rxa2 {[%clk 0:01:17]} 33. Ke3 {[%clk 0:00:03]}  Bxe2 {[%clk 0:01:15]} 34. Rxe2 {[%clk 0:00:04]}  Rxe2+ {[%clk 0:01:15]} 35. Kxe2 {[%clk 0:00:05]}  Kf8 {[%clk 0:01:15]} 36. Kd3 {[%clk 0:00:05]}  Ke7 {[%clk 0:01:15]} 37. Kd4 {[%clk 0:00:06]}  Kd6 {[%clk 0:01:16]} 38. b4 {[%clk 0:00:07]}  a6 {[%clk 0:01:16]} 39. g4 {[%clk 0:00:06]}  g6 {[%clk 0:01:15]} 40. g5 {[%clk 0:00:06]}  Kc6 {[%clk 0:01:00]} 41. Ke5 {[%clk 0:00:06]}  Kb5 {[%clk 0:01:00]} 42. Kf6 {[%clk 0:00:06]}  d4 {[%clk 0:01:00]} 43. Kxf7 {[%clk 0:00:07]}  d3 {[%clk 0:01:00]} 44. Kxg6 {[%clk 0:00:07]}  d2 {[%clk 0:01:01]} 45. Kh7 {[%clk 0:00:08]}  d1=Q {[%clk 0:01:02]} 46. g6 {[%clk 0:00:09]}  Qxf3 {[%clk 0:01:01]} 47. g7 {[%clk 0:00:10]}  Qf5+ {[%clk 0:01:02]} 48. Kh8 {[%clk 0:00:10]}  Qf6 {[%clk 0:01:01]} 49. Kh7 {[%clk 0:00:10]}  Qf5+ {[%clk 0:01:02]} 50. Kh8 {[%clk 0:00:10]}  Qe5 {[%clk 0:00:39]} 51. Kh7 {[%clk 0:00:10]}  Qe7 {[%clk 0:00:33]} 52. Kh8 {[%clk 0:00:10]}  Qe8+ {[%clk 0:00:18]} 53. g8=Q {[%clk 0:00:11]}  Qxg8+ {[%clk 0:00:18]} 54. Kxg8 {[%clk 0:00:12]}  Kxb4 {[%clk 0:00:19]} 55. Kh7 {[%clk 0:00:12]}  a5 {[%clk 0:00:20]} 56. Kg6 {[%clk 0:00:13]}  a4 {[%clk 0:00:21]} 57. Kxh5 {[%clk 0:00:14]}  a3 {[%clk 0:00:22]} 58. Kg6 {[%clk 0:00:13]}  a2 {[%clk 0:00:23]} 59. h5 {[%clk 0:00:14]}  a1=Q {[%clk 0:00:24]} 60. h6 {[%clk 0:00:15]}  Qh8 {[%clk 0:00:24]} 61. h7 {[%clk 0:00:16]}  Kc5 {[%clk 0:00:24]} 0-1


[Site "https://www.chess.com"]

[Event "Titled Tuesday Blitz July 13 2021"]
[White "McDonald, Mike"]
[Black "Novikov, Evgenij"]
[WhiteFideId "2635682"]
[BlackFideId "4125380"]
[WhiteElo "2391"]
[BlackElo "2242"]
[Result "1-0"]
[Round "06"]
[TimeControl "180+1"]
[Date "2021.07.13"]
[WhiteClock "0:00:06"]
[BlackClock "0:00:03"]

1. e4 {[%clk 0:03:00]}  c5 {[%clk 0:02:59]} 2. c3 {[%clk 0:03:01]}  g6 {[%clk 0:02:19]} 3. d4 {[%clk 0:03:01]}  cxd4 {[%clk 0:02:20]} 4. cxd4 {[%clk 0:03:02]}  d5 {[%clk 0:02:21]} 5. e5 {[%clk 0:03:01]}  Nc6 {[%clk 0:02:21]} 6. Nc3 {[%clk 0:03:01]}  Bf5 {[%clk 0:02:21]} 7. g4 {[%clk 0:02:55]}  Be6 {[%clk 0:02:19]} 8. Bg2 {[%clk 0:02:52]}  h5 {[%clk 0:02:16]} 9. g5 {[%clk 0:02:23]}  f6 {[%clk 0:01:50]} 10. Qd3 {[%clk 0:02:16]}  fxe5 {[%clk 0:01:19]} 11. Nxd5 {[%clk 0:01:45]}  Nxd4 {[%clk 0:00:58]} 12. Ne3 {[%clk 0:01:19]}  Kf7 {[%clk 0:00:47]} 13. Bxb7 {[%clk 0:00:59]}  Nf3+ {[%clk 0:00:48]} 14. Ke2 {[%clk 0:00:58]}  Qxd3+ {[%clk 0:00:48]} 15. Kxd3 {[%clk 0:00:58]}  Nxg1 {[%clk 0:00:44]} 16. Bxa8 {[%clk 0:00:56]}  Nh3 {[%clk 0:00:42]} 17. Nc4 {[%clk 0:00:50]}  Nxf2+ {[%clk 0:00:38]} 18. Kc3 {[%clk 0:00:48]}  Bxc4 {[%clk 0:00:33]} 19. Re1 {[%clk 0:00:24]}  Ba6 {[%clk 0:00:31]} 20. Rxe5 {[%clk 0:00:19]}  Bg7 {[%clk 0:00:31]} 21. Bd5+ {[%clk 0:00:19]}  e6 {[%clk 0:00:30]} 22. Bxe6+ {[%clk 0:00:17]}  Ke7 {[%clk 0:00:30]} 23. Bf4 {[%clk 0:00:15]}  Bxe5+ {[%clk 0:00:22]} 24. Bxe5 {[%clk 0:00:16]}  Kxe6 {[%clk 0:00:23]} 25. Bxh8 {[%clk 0:00:16]}  Ne4+ {[%clk 0:00:20]} 26. Kd4 {[%clk 0:00:17]}  Nxg5 {[%clk 0:00:20]} 27. Re1+ {[%clk 0:00:18]}  Kf5 {[%clk 0:00:19]} 28. Re5+ {[%clk 0:00:15]}  Kf4 {[%clk 0:00:19]} 29. Re8 {[%clk 0:00:14]}  Nh6 {[%clk 0:00:18]} 30. Be5+ {[%clk 0:00:11]}  Kg4 {[%clk 0:00:17]} 31. Ra8 {[%clk 0:00:10]}  Nf5+ {[%clk 0:00:17]} 32. Kc3 {[%clk 0:00:10]}  Ne4+ {[%clk 0:00:16]} 33. Kb4 {[%clk 0:00:10]}  Bb7 {[%clk 0:00:10]} 34. Rxa7 {[%clk 0:00:10]}  Bd5 {[%clk 0:00:11]} 35. a4 {[%clk 0:00:08]}  h4 {[%clk 0:00:08]} 36. a5 {[%clk 0:00:08]}  g5 {[%clk 0:00:08]} 37. a6 {[%clk 0:00:08]}  Ne3 {[%clk 0:00:08]} 38. Rd7 {[%clk 0:00:08]}  Be6 {[%clk 0:00:07]} 39. Rd8 {[%clk 0:00:06]}  h3 {[%clk 0:00:06]} 40. a7 {[%clk 0:00:06]}  Nd5+ {[%clk 0:00:07]} 41. Ka5 {[%clk 0:00:05]}  Ne7 {[%clk 0:00:02]} 42. a8=Q {[%clk 0:00:05]}  Bf5 {[%clk 0:00:02]} 43. Rd4 {[%clk 0:00:04]}  Ng6 {[%clk 0:00:02]} 44. Rxe4+ {[%clk 0:00:05]}  Bxe4 {[%clk 0:00:03]} 45. Qxe4+ {[%clk 0:00:06]}  Kh5 {[%clk 0:00:04]} 46. Qf5 {[%clk 0:00:06]}  Kh4 {[%clk 0:00:04]} 47. Bf6 {[%clk 0:00:05]}  Nf4 {[%clk 0:00:03]} 48. Qxg5# {[%clk 0:00:06]} 1-0


[Site "https://www.chess.com"]

[Event "Titled Tuesday Blitz July 13 2021"]
[White "Miszler, Levente"]
[Black "Kolb, Tobias"]
[WhiteFideId "763276"]
[BlackFideId "12992321"]
[WhiteElo "1967"]
[BlackElo "2110"]
[Result "0-1"]
[Round "06"]
[TimeControl "180+1"]
[Date "2021.07.13"]
[WhiteClock "0:00:02"]
[BlackClock "0:00:09"]

1. Nf3 {[%clk 0:03:00]}  d5 {[%clk 0:02:59]} 2. c4 {[%clk 0:03:00]}  c6 {[%clk 0:03:00]} 3. d4 {[%clk 0:02:59]}  e6 {[%clk 0:02:59]} 4. Nc3 {[%clk 0:03:00]}  dxc4 {[%clk 0:03:00]} 5. e3 {[%clk 0:02:56]}  b5 {[%clk 0:02:59]} 6. Ne5 {[%clk 0:02:56]}  Bb7 {[%clk 0:02:56]} 7. Qf3 {[%clk 0:02:46]}  Qf6 {[%clk 0:02:56]} 8. Qe4 {[%clk 0:02:17]}  Qf5 {[%clk 0:02:39]} 9. a4 {[%clk 0:02:10]}  a6 {[%clk 0:02:22]} 10. Qxf5 {[%clk 0:02:08]}  exf5 {[%clk 0:02:22]} 11. Be2 {[%clk 0:02:03]}  Bd6 {[%clk 0:02:18]} 12. f4 {[%clk 0:02:01]}  Ne7 {[%clk 0:01:52]} 13. Bf3 {[%clk 0:01:59]}  f6 {[%clk 0:01:52]} 14. axb5 {[%clk 0:01:44]}  fxe5 {[%clk 0:01:52]} 15. fxe5 {[%clk 0:01:39]}  Bb4 {[%clk 0:01:52]} 16. bxc6 {[%clk 0:01:37]}  Bxc6 {[%clk 0:01:52]} 17. Bd2 {[%clk 0:01:35]}  O-O {[%clk 0:01:41]} 18. Ke2 {[%clk 0:01:33]}  Bxf3+ {[%clk 0:01:37]} 19. gxf3 {[%clk 0:01:33]}  Nbc6 {[%clk 0:01:37]} 20. Na4 {[%clk 0:01:26]}  Bxd2 {[%clk 0:01:33]} 21. Kxd2 {[%clk 0:01:27]}  f4 {[%clk 0:01:33]} 22. Rhc1 {[%clk 0:01:25]}  fxe3+ {[%clk 0:01:33]} 23. Kxe3 {[%clk 0:01:26]}  Nd5+ {[%clk 0:01:33]} 24. Ke4 {[%clk 0:01:25]}  Nce7 {[%clk 0:01:33]} 25. Rxc4 {[%clk 0:01:21]}  Rf4+ {[%clk 0:01:31]} 26. Kd3 {[%clk 0:01:21]}  Rxf3+ {[%clk 0:01:32]} 27. Ke2 {[%clk 0:01:21]}  Raf8 {[%clk 0:01:27]} 28. Re1 {[%clk 0:01:08]}  Rf2+ {[%clk 0:01:07]} 29. Kd1 {[%clk 0:01:08]}  Rxh2 {[%clk 0:01:04]} 30. Re2 {[%clk 0:00:54]}  Rf1+ {[%clk 0:00:54]} 31. Kd2 {[%clk 0:00:54]}  Rhh1 {[%clk 0:00:55]} 32. Nc3 {[%clk 0:00:52]}  Nf4 {[%clk 0:00:51]} 33. Re4 {[%clk 0:00:47]}  Rf2+ {[%clk 0:00:48]} 34. Ke3 {[%clk 0:00:45]}  Rhf1 {[%clk 0:00:37]} 35. d5 {[%clk 0:00:34]}  Nexd5+ {[%clk 0:00:19]} 36. Kd4 {[%clk 0:00:31]}  Rd2+ {[%clk 0:00:17]} 37. Kc5 {[%clk 0:00:30]}  Nxc3 {[%clk 0:00:17]} 38. bxc3 {[%clk 0:00:27]}  Ne6+ {[%clk 0:00:16]} 39. Kb6 {[%clk 0:00:27]}  h6 {[%clk 0:00:16]} 40. Kxa6 {[%clk 0:00:25]}  Rd5 {[%clk 0:00:16]} 41. Kb6 {[%clk 0:00:21]}  Rc1 {[%clk 0:00:14]} 42. Rc6 {[%clk 0:00:20]}  Ng5 {[%clk 0:00:12]} 43. Re3 {[%clk 0:00:17]}  Rb1+ {[%clk 0:00:12]} 44. Kc7 {[%clk 0:00:17]}  Ra1 {[%clk 0:00:11]} 45. e6 {[%clk 0:00:16]}  Ra7+ {[%clk 0:00:11]} 46. Kb6 {[%clk 0:00:08]}  Re7 {[%clk 0:00:12]} 47. c4 {[%clk 0:00:06]}  Rf5 {[%clk 0:00:11]} 48. c5 {[%clk 0:00:06]}  Rf6 {[%clk 0:00:11]} 49. Rc7 {[%clk 0:00:06]}  Rfxe6+ {[%clk 0:00:11]} 50. Rxe6 {[%clk 0:00:06]}  Rxe6+ {[%clk 0:00:12]} 51. c6 {[%clk 0:00:07]}  Ne4 {[%clk 0:00:11]} 52. Rc8+ {[%clk 0:00:07]}  Kh7 {[%clk 0:00:11]} 53. Rd8 {[%clk 0:00:07]}  h5 {[%clk 0:00:11]} 54. Kb7 {[%clk 0:00:06]}  Nc5+ {[%clk 0:00:11]} 55. Kb6 {[%clk 0:00:06]}  Ne4 {[%clk 0:00:11]} 56. Kb7 {[%clk 0:00:06]}  Nd6+ {[%clk 0:00:11]} 57. Kb6 {[%clk 0:00:02]}  Ne8 {[%clk 0:00:11]} 58. Kc5 {[%clk 0:00:01]}  h4 {[%clk 0:00:10]} 59. Kd5 {[%clk 0:00:02]}  Nc7+ {[%clk 0:00:10]} 60. Kc5 {[%clk 0:00:02]}  h3 {[%clk 0:00:11]} 61. Rd3 {[%clk 0:00:01]}  Rh6 {[%clk 0:00:10]} 62. Rd7 {[%clk 0:00:01]}  h2 {[%clk 0:00:10]} 63. Rxc7 {[%clk 0:00:01]}  h1=Q {[%clk 0:00:10]} 64. Kb6 {[%clk 0:00:02]}  Qb1+ {[%clk 0:00:09]} 0-1


[Site "https://www.chess.com"]

[Event "Titled Tuesday Blitz July 13 2021"]
[White "Mortazavi, Ali"]
[Black "Seo, Jung Min"]
[WhiteFideId "401323"]
[BlackFideId "1734687"]
[WhiteElo "2339"]
[BlackElo "2486"]
[Result "1-0"]
[Round "06"]
[TimeControl "180+1"]
[Date "2021.07.13"]
[WhiteClock "0:00:17"]
[BlackClock "0:01:29"]

1. Nf3 {[%clk 0:03:00]}  Nf6 {[%clk 0:02:59]} 2. g3 {[%clk 0:03:00]}  g6 {[%clk 0:02:59]} 3. Bg2 {[%clk 0:03:01]}  Bg7 {[%clk 0:02:59]} 4. O-O {[%clk 0:03:02]}  O-O {[%clk 0:02:59]} 5. d3 {[%clk 0:03:03]}  d5 {[%clk 0:02:59]} 6. Nbd2 {[%clk 0:03:02]}  c5 {[%clk 0:02:59]} 7. e3 {[%clk 0:03:03]}  Nc6 {[%clk 0:02:59]} 8. e4 {[%clk 0:03:03]}  d4 {[%clk 0:02:58]} 9. h3 {[%clk 0:02:59]}  e5 {[%clk 0:02:57]} 10. Nc4 {[%clk 0:02:58]}  Ne8 {[%clk 0:02:56]} 11. a4 {[%clk 0:02:54]}  Rb8 {[%clk 0:02:55]} 12. Nh2 {[%clk 0:02:44]}  Be6 {[%clk 0:02:53]} 13. f4 {[%clk 0:02:44]}  Qd7 {[%clk 0:02:47]} 14. Ng4 {[%clk 0:02:15]}  exf4 {[%clk 0:02:44]} 15. gxf4 {[%clk 0:02:09]}  Bxc4 {[%clk 0:02:43]} 16. dxc4 {[%clk 0:02:08]}  Nd6 {[%clk 0:02:42]} 17. e5 {[%clk 0:01:42]}  Nxc4 {[%clk 0:02:41]} 18. Qd3 {[%clk 0:01:42]}  Nb6 {[%clk 0:02:36]} 19. Qg3 {[%clk 0:01:32]}  Rbe8 {[%clk 0:02:28]} 20. f5 {[%clk 0:01:06]}  Bxe5 {[%clk 0:02:05]} 21. Qh4 {[%clk 0:00:42]}  f6 {[%clk 0:02:02]} 22. fxg6 {[%clk 0:00:37]}  hxg6 {[%clk 0:02:02]} 23. Nxf6+ {[%clk 0:00:31]}  Rxf6 {[%clk 0:02:00]} 24. Rxf6 {[%clk 0:00:31]}  Bxf6 {[%clk 0:02:00]} 25. Qxf6 {[%clk 0:00:31]}  Qf7 {[%clk 0:02:00]} 26. Qxf7+ {[%clk 0:00:30]}  Kxf7 {[%clk 0:02:00]} 27. a5 {[%clk 0:00:28]}  Nc4 {[%clk 0:01:55]} 28. a6 {[%clk 0:00:28]}  Re1+ {[%clk 0:01:45]} 29. Kf2 {[%clk 0:00:28]}  Rd1 {[%clk 0:01:45]} 30. axb7 {[%clk 0:00:27]}  Nb8 {[%clk 0:01:45]} 31. Bf3 {[%clk 0:00:22]}  Rxc1 {[%clk 0:01:39]} 32. Rxc1 {[%clk 0:00:21]}  Nxb2 {[%clk 0:01:39]} 33. Ra1 {[%clk 0:00:20]}  d3 {[%clk 0:01:36]} 34. cxd3 {[%clk 0:00:20]}  Nxd3+ {[%clk 0:01:35]} 35. Ke3 {[%clk 0:00:21]}  Ne5 {[%clk 0:01:35]} 36. Rxa7 {[%clk 0:00:20]}  Nc4+ {[%clk 0:01:31]} 37. Kf4 {[%clk 0:00:18]}  Ke7 {[%clk 0:01:29]} 38. Ra8 {[%clk 0:00:18]}  Nd7 {[%clk 0:01:29]} 39. b8=Q {[%clk 0:00:17]} 1-0


[Site "https://www.chess.com"]

[Event "Titled Tuesday Blitz July 13 2021"]
[White "Nabaty, Tamir"]
[Black "Rustemov, Alexander"]
[WhiteFideId "2809052"]
[BlackFideId "4119002"]
[WhiteElo "2627"]
[BlackElo "2782"]
[Result "1-0"]
[Round "06"]
[TimeControl "180+1"]
[Date "2021.07.13"]
[WhiteClock "0:01:50"]
[BlackClock "0:01:05"]

1. Nf3 {[%clk 0:03:00]}  d5 {[%clk 0:02:59]} 2. b3 {[%clk 0:03:01]}  Nf6 {[%clk 0:03:00]} 3. Bb2 {[%clk 0:03:02]}  c6 {[%clk 0:03:00]} 4. e3 {[%clk 0:03:02]}  Bf5 {[%clk 0:03:00]} 5. Be2 {[%clk 0:03:00]}  h6 {[%clk 0:02:57]} 6. O-O {[%clk 0:03:00]}  e6 {[%clk 0:02:57]} 7. d4 {[%clk 0:03:00]}  Nbd7 {[%clk 0:02:56]} 8. c4 {[%clk 0:03:01]}  Bd6 {[%clk 0:02:54]} 9. Nc3 {[%clk 0:03:01]}  O-O {[%clk 0:02:53]} 10. a3 {[%clk 0:03:00]}  a5 {[%clk 0:02:46]} 11. Bd3 {[%clk 0:03:00]}  Bxd3 {[%clk 0:02:32]} 12. Qxd3 {[%clk 0:03:01]}  Re8 {[%clk 0:02:24]} 13. e4 {[%clk 0:02:58]}  dxe4 {[%clk 0:02:22]} 14. Nxe4 {[%clk 0:02:59]}  Nxe4 {[%clk 0:02:20]} 15. Qxe4 {[%clk 0:03:00]}  Qc7 {[%clk 0:02:07]} 16. Rfe1 {[%clk 0:03:00]}  Rad8 {[%clk 0:02:05]} 17. g3 {[%clk 0:02:59]}  Nf8 {[%clk 0:01:56]} 18. Rad1 {[%clk 0:02:57]}  Be7 {[%clk 0:01:47]} 19. h4 {[%clk 0:02:47]}  Bf6 {[%clk 0:01:46]} 20. Qc2 {[%clk 0:02:44]}  Re7 {[%clk 0:01:44]} 21. Ne5 {[%clk 0:02:37]}  Bxe5 {[%clk 0:01:43]} 22. Rxe5 {[%clk 0:02:25]}  Ng6 {[%clk 0:01:43]} 23. Ree1 {[%clk 0:02:23]}  Red7 {[%clk 0:01:43]} 24. Qc3 {[%clk 0:02:21]}  e5 {[%clk 0:01:25]} 25. Qe3 {[%clk 0:02:03]}  exd4 {[%clk 0:01:22]} 26. Rxd4 {[%clk 0:02:03]}  Nf8 {[%clk 0:01:10]} 27. Rg4 {[%clk 0:01:54]}  Ne6 {[%clk 0:01:05]} 28. Qxh6 {[%clk 0:01:50]} 1-0


[Site "https://www.chess.com"]

[Event "Titled Tuesday Blitz July 13 2021"]
[White "Nakamura, Hikaru"]
[Black "Chigaev, Maksim"]
[WhiteFideId "2016192"]
[BlackFideId "4108116"]
[WhiteElo "2900"]
[BlackElo "2646"]
[Result "1-0"]
[Round "06"]
[TimeControl "180+1"]
[Date "2021.07.13"]
[WhiteClock "0:00:13"]
[BlackClock "0:00:05"]

1. Nf3 {[%clk 0:03:00]}  Nf6 {[%clk 0:03:00]} 2. b3 {[%clk 0:03:00]}  g6 {[%clk 0:02:59]} 3. d4 {[%clk 0:03:00]}  Bg7 {[%clk 0:02:59]} 4. Bb2 {[%clk 0:03:01]}  b6 {[%clk 0:02:59]} 5. e3 {[%clk 0:03:01]}  Bb7 {[%clk 0:02:59]} 6. g3 {[%clk 0:03:00]}  O-O {[%clk 0:03:00]} 7. Bg2 {[%clk 0:03:00]}  c5 {[%clk 0:03:00]} 8. O-O {[%clk 0:02:55]}  Na6 {[%clk 0:02:53]} 9. c4 {[%clk 0:02:46]}  d5 {[%clk 0:02:54]} 10. Nbd2 {[%clk 0:02:38]}  Rc8 {[%clk 0:02:51]} 11. Qe2 {[%clk 0:02:33]}  e6 {[%clk 0:02:47]} 12. Rac1 {[%clk 0:02:29]}  Qe7 {[%clk 0:02:47]} 13. a3 {[%clk 0:02:23]}  Rfd8 {[%clk 0:02:45]} 14. Rfd1 {[%clk 0:02:22]}  dxc4 {[%clk 0:02:34]} 15. Nxc4 {[%clk 0:02:20]}  cxd4 {[%clk 0:02:29]} 16. exd4 {[%clk 0:02:08]}  Nd5 {[%clk 0:02:23]} 17. Nce5 {[%clk 0:02:01]}  Nb8 {[%clk 0:02:17]} 18. h4 {[%clk 0:01:55]}  h6 {[%clk 0:02:12]} 19. Nd2 {[%clk 0:01:54]}  Nd7 {[%clk 0:01:50]} 20. Ndc4 {[%clk 0:01:53]}  N7f6 {[%clk 0:01:50]} 21. a4 {[%clk 0:01:51]}  Qe8 {[%clk 0:01:35]} 22. Ba3 {[%clk 0:01:46]}  Bf8 {[%clk 0:01:35]} 23. Bxf8 {[%clk 0:01:46]}  Qxf8 {[%clk 0:01:35]} 24. Rc2 {[%clk 0:01:36]}  Rc7 {[%clk 0:01:23]} 25. Ne3 {[%clk 0:01:24]}  Rxc2 {[%clk 0:01:21]} 26. Qxc2 {[%clk 0:01:25]}  Rc8 {[%clk 0:01:13]} 27. Qd2 {[%clk 0:01:23]}  h5 {[%clk 0:00:47]} 28. N3c4 {[%clk 0:01:16]}  Rc7 {[%clk 0:00:44]} 29. Re1 {[%clk 0:01:13]}  Qb4 {[%clk 0:00:44]} 30. Qd1 {[%clk 0:00:52]}  Nc3 {[%clk 0:00:38]} 31. Qc2 {[%clk 0:00:49]}  Bxg2 {[%clk 0:00:38]} 32. Kxg2 {[%clk 0:00:49]}  Ncd5 {[%clk 0:00:27]} 33. Rc1 {[%clk 0:00:44]}  Kg7 {[%clk 0:00:25]} 34. Qb1 {[%clk 0:00:40]}  a6 {[%clk 0:00:23]} 35. Nd3 {[%clk 0:00:17]}  Qe7 {[%clk 0:00:21]} 36. Nce5 {[%clk 0:00:17]}  Qd8 {[%clk 0:00:12]} 37. Rc4 {[%clk 0:00:16]}  Qa8 {[%clk 0:00:11]} 38. Kg1 {[%clk 0:00:16]}  b5 {[%clk 0:00:09]} 39. Rxc7 {[%clk 0:00:14]}  Nxc7 {[%clk 0:00:09]} 40. Nxf7 {[%clk 0:00:14]}  Qe4 {[%clk 0:00:07]} 41. Ng5 {[%clk 0:00:13]}  Qxd4 {[%clk 0:00:05]} 42. Nf4 {[%clk 0:00:13]} 1-0


[Site "https://www.chess.com"]

[Event "Titled Tuesday Blitz July 13 2021"]
[White "Nasyrova, Ekaterina"]
[Black "Matinian, Nikita"]
[WhiteFideId "44157797"]
[BlackFideId "24129100"]
[WhiteElo "2115"]
[BlackElo "2410"]
[Result "0-1"]
[Round "06"]
[TimeControl "180+1"]
[Date "2021.07.13"]
[WhiteClock "0:00:02"]
[BlackClock "0:00:58"]

1. d4 {[%clk 0:02:59]}  d6 {[%clk 0:02:59]} 2. Nf3 {[%clk 0:02:58]}  g6 {[%clk 0:02:58]} 3. c4 {[%clk 0:02:55]}  Bg7 {[%clk 0:02:59]} 4. Nc3 {[%clk 0:02:54]}  Nc6 {[%clk 0:02:58]} 5. g3 {[%clk 0:02:54]}  h5 {[%clk 0:02:57]} 6. Bg2 {[%clk 0:02:53]}  h4 {[%clk 0:02:55]} 7. Bg5 {[%clk 0:02:49]}  h3 {[%clk 0:02:53]} 8. Bf1 {[%clk 0:02:47]}  Nh6 {[%clk 0:02:53]} 9. d5 {[%clk 0:02:36]}  Na5 {[%clk 0:02:45]} 10. Qd3 {[%clk 0:02:29]}  c5 {[%clk 0:02:42]} 11. e4 {[%clk 0:02:14]}  a6 {[%clk 0:02:06]} 12. Nd2 {[%clk 0:01:56]}  Ng4 {[%clk 0:02:01]} 13. f4 {[%clk 0:01:46]}  Bd4 {[%clk 0:01:55]} 14. Nd1 {[%clk 0:01:22]}  f6 {[%clk 0:01:52]} 15. Bh4 {[%clk 0:01:18]}  b5 {[%clk 0:01:48]} 16. Be2 {[%clk 0:01:13]}  bxc4 {[%clk 0:01:41]} 17. Qc2 {[%clk 0:01:02]}  Rb8 {[%clk 0:01:35]} 18. Nxc4 {[%clk 0:00:42]}  Nxc4 {[%clk 0:01:32]} 19. Bxc4 {[%clk 0:00:43]}  Qa5+ {[%clk 0:01:24]} 20. Ke2 {[%clk 0:00:37]}  Ne3 {[%clk 0:01:21]} 21. Nxe3 {[%clk 0:00:11]}  Rxb2 {[%clk 0:01:19]} 22. Qxb2 {[%clk 0:00:11]}  Bxb2 {[%clk 0:01:20]} 23. Rab1 {[%clk 0:00:12]}  Bd4 {[%clk 0:01:12]} 24. Rb8 {[%clk 0:00:09]}  Kf7 {[%clk 0:01:12]} 25. Rhb1 {[%clk 0:00:09]}  Bxe3 {[%clk 0:01:07]} 26. Kxe3 {[%clk 0:00:08]}  Qc3+ {[%clk 0:01:07]} 27. Bd3 {[%clk 0:00:02]}  c4 {[%clk 0:01:07]} 28. Rd1 {[%clk 0:00:03]}  cxd3 {[%clk 0:01:05]} 29. Rxd3 {[%clk 0:00:03]}  Qe1+ {[%clk 0:01:05]} 30. Kd4 {[%clk 0:00:03]}  Qg1+ {[%clk 0:01:03]} 31. Kc4 {[%clk 0:00:03]}  Qxh2 {[%clk 0:00:59]} 32. e5 {[%clk 0:00:02]}  Qxa2+ {[%clk 0:00:58]} 0-1


[Site "https://www.chess.com"]